Workbook

Sheet Tabelle1
A1: Darstellung der Darlehen und Ermittlung der betriebswirtschaftlichen Tilgung 1) | AO1: Abschlussstichtag
AO2: 30.04.
AO3: 30.06.
AO4: 31.12.
A5: Antragstellendes Unternehmen (Name, Vorname, ggf. Unternehmensbezeichnung) | Y5: EU-Registriernummer
Y6: Nation | AB6: BL | AD6: BR | AE6: LK | AG6: Gemeinde | AJ6: Betrieb
A7: Abschlussstichtag: | F7: 30.06. | Y7: 2 | Z7: 7 | AA7: 6
A8: Ist-Jahr des IK: | F8: 2011
A9: Ziel-Jahr des IK: | F9: 2013
N10: Wirtschaftsjahre | AC10: Ist-Jahr des IK 6) | AH10: Ziel-Jahr des IK
N11: =AC11-3 -> 2008 | S11: =AC11-2 -> 2009 | X11: =AC11-1 -> 2010 | AC11: =F8 -> 2011 | AH11: =F9 -> 2013
A12: ldf. | B12: Darlehensbezeichnung 2) | G12: Darlehenszweck | N12: Valuta Geschäftsjahr 4) | S12: Valuta Geschäftsjahr | X12: Valuta Geschäftsjahr | AC12: Valuta | AH12: Valuta
A13: Nr. | B13: Nennwert (€) | G13: tatsächliche Laufzeit | N13: Tilgung lt. Abschluss | S13: Tilgung lt. Abschluss | X13: Tilgung lt. Abschluss | AC13: vereinbarte Tilgung | AH13: vereinbarte Tilgung
B14: Aufnahmedatum | G14: betriebswirts. Laufzeit 3) | N14: betriebswirts. Tilgung 5) | S14: betriebswirts. Tilgung | X14: betriebswirts. Tilgung | AC14: betriebswirts. Tilgung | AH14: betriebswirts. Tilgung
N15: ( in €) | S15: ( in €) | X15: ( in €) | AC15: ( in €) | AH15: ( in €)
A17: 1 | B17: Raiba 123 456 | G17: Neubau Boxenlaufstall | N17: 96191.5 | S17: 86478.28 | X17: 76471.47 | AC17: 63944.81 | AH17: 38891.49
B18: 175373.12 | G18: 16 | L18: Jahre | N18: 6000 | S18: 12526.66 | X18: 12526.66 | AC18: 12526.66 | AH18: 12526.66
B19: 1997-10-17 | G19: 20 | L19: Jahre | N19: =Tilgung($B18,$G19,$B19,N$11,$F$7,N18) -> 8768.656 | S19: =Tilgung($B18,$G19,$B19,S$11,$F$7,S18) -> 8768.656 | X19: =Tilgung($B18,$G19,$B19,X$11,$F$7,X18) -> 8768.656 | AC19: =Tilgung($B18,$G19,$B19,AC$11,$F$7,AC18) -> 8768.656 | AH19: =Tilgung($B18,$G19,$B19,AH$11,$F$7,AH18) -> 8768.656
A21: 2
L22: Jahre
L23: Jahre | N23: =Tilgung($B22,$G23,$B23,N$11,$F$7,N22) -> 0 | S23: =Tilgung($B22,$G23,$B23,S$11,$F$7,S22) -> 0 | X23: =Tilgung($B22,$G23,$B23,X$11,$F$7,X22) -> 0 | AC23: =Tilgung($B22,$G23,$B23,AC$11,$F$7,AC22) -> 0 | AH23: =Tilgung($B22,$G23,$B23,AH$11,$F$7,AH22) -> 0
A25: 3
L26: Jahre
L27: Jahre | N27: =Tilgung($B26,$G27,$B27,N$11,$F$7,N26) -> 0 | S27: =Tilgung($B26,$G27,$B27,S$11,$F$7,S26) -> 0 | X27: =Tilgung($B26,$G27,$B27,X$11,$F$7,X26) -> 0 | AC27: =Tilgung($B26,$G27,$B27,AC$11,$F$7,AC26) -> 0 | AH27: =Tilgung($B26,$G27,$B27,AH$11,$F$7,AH26) -> 0
G28: ,
A29: 4
L30: Jahre
L31: Jahre | N31: =Tilgung($B30,$G31,$B31,N$11,$F$7,N30) -> 0 | S31: =Tilgung($B30,$G31,$B31,S$11,$F$7,S30) -> 0 | X31: =Tilgung($B30,$G31,$B31,X$11,$F$7,X30) -> 0 | AC31: =Tilgung($B30,$G31,$B31,AC$11,$F$7,AC30) -> 0 | AH31: =Tilgung($B30,$G31,$B31,AH$11,$F$7,AH30) -> 0
A33: 5
L34: Jahre
L35: Jahre | N35: =Tilgung($B34,$G35,$B35,N$11,$F$7,N34) -> 0 | S35: =Tilgung($B34,$G35,$B35,S$11,$F$7,S34) -> 0 | X35: =Tilgung($B34,$G35,$B35,X$11,$F$7,X34) -> 0 | AC35: =Tilgung($B34,$G35,$B35,AC$11,$F$7,AC34) -> 0 | AH35: =Tilgung($B34,$G35,$B35,AH$11,$F$7,AH34) -> 0
Z36: =Tilgung($B35,$G36,$B36,Z$11,$F$7,Z35) -> 
A37: 6
L38: Jahre
L39: Jahre | N39: =Tilgung($B38,$G39,$B39,N$11,$F$7,N38) -> 0 | S39: =Tilgung($B38,$G39,$B39,S$11,$F$7,S38) -> 0 | X39: =Tilgung($B38,$G39,$B39,X$11,$F$7,X38) -> 0 | AC39: =Tilgung($B38,$G39,$B39,AC$11,$F$7,AC38) -> 0 | AH39: =Tilgung($B38,$G39,$B39,AH$11,$F$7,AH38) -> 0
A41: 7
L42: Jahre
L43: Jahre | N43: =Tilgung($B42,$G43,$B43,N$11,$F$7,N42) -> 0 | S43: =Tilgung($B42,$G43,$B43,S$11,$F$7,S42) -> 0 | X43: =Tilgung($B42,$G43,$B43,X$11,$F$7,X42) -> 0 | AC43: =Tilgung($B42,$G43,$B43,AC$11,$F$7,AC42) -> 0 | AH43: =Tilgung($B42,$G43,$B43,AH$11,$F$7,AH42) -> 0
A45: 8
L46: Jahre
L47: Jahre | N47: =Tilgung($B46,$G47,$B47,N$11,$F$7,N46) -> 0 | S47: =Tilgung($B46,$G47,$B47,S$11,$F$7,S46) -> 0 | X47: =Tilgung($B46,$G47,$B47,X$11,$F$7,X46) -> 0 | AC47: =Tilgung($B46,$G47,$B47,AC$11,$F$7,AC46) -> 0 | AH47: =Tilgung($B46,$G47,$B47,AH$11,$F$7,AH46) -> 0
A49: 9
L50: Jahre
L51: Jahre | N51: =Tilgung($B50,$G51,$B51,N$11,$F$7,N50) -> 0 | S51: =Tilgung($B50,$G51,$B51,S$11,$F$7,S50) -> 0 | X51: =Tilgung($B50,$G51,$B51,X$11,$F$7,X50) -> 0 | AC51: =Tilgung($B50,$G51,$B51,AC$11,$F$7,AC50) -> 0 | AH51: =Tilgung($B50,$G51,$B51,AH$11,$F$7,AH50) -> 0
A53: 10
L54: Jahre
L55: Jahre | N55: =Tilgung($B54,$G55,$B55,N$11,$F$7,N54) -> 0 | S55: =Tilgung($B54,$G55,$B55,S$11,$F$7,S54) -> 0 | X55: =Tilgung($B54,$G55,$B55,X$11,$F$7,X54) -> 0 | AC55: =Tilgung($B54,$G55,$B55,AC$11,$F$7,AC54) -> 0 | AH55: =Tilgung($B54,$G55,$B55,AH$11,$F$7,AH54) -> 0
A57: 11
L58: Jahre
L59: Jahre | N59: =Tilgung($B58,$G59,$B59,N$11,$F$7,N58) -> 0 | S59: =Tilgung($B58,$G59,$B59,S$11,$F$7,S58) -> 0 | X59: =Tilgung($B58,$G59,$B59,X$11,$F$7,X58) -> 0 | AC59: =Tilgung($B58,$G59,$B59,AC$11,$F$7,AC58) -> 0 | AH59: =Tilgung($B58,$G59,$B59,AH$11,$F$7,AH58) -> 0
A61: 12
L62: Jahre
L63: Jahre | N63: =Tilgung($B62,$G63,$B63,N$11,$F$7,N62) -> 0 | S63: =Tilgung($B62,$G63,$B63,S$11,$F$7,S62) -> 0 | X63: =Tilgung($B62,$G63,$B63,X$11,$F$7,X62) -> 0 | AC63: =Tilgung($B62,$G63,$B63,AC$11,$F$7,AC62) -> 0 | AH63: =Tilgung($B62,$G63,$B63,AH$11,$F$7,AH62) -> 0
A65: 13
L66: Jahre
L67: Jahre | N67: =Tilgung($B66,$G67,$B67,N$11,$F$7,N66) -> 0 | S67: =Tilgung($B66,$G67,$B67,S$11,$F$7,S66) -> 0 | X67: =Tilgung($B66,$G67,$B67,X$11,$F$7,X66) -> 0 | AC67: =Tilgung($B66,$G67,$B67,AC$11,$F$7,AC66) -> 0 | AH67: =Tilgung($B66,$G67,$B67,AH$11,$F$7,AH66) -> 0
A69: 14
L70: Jahre
L71: Jahre | N71: =Tilgung($B70,$G71,$B71,N$11,$F$7,N70) -> 0 | S71: =Tilgung($B70,$G71,$B71,S$11,$F$7,S70) -> 0 | X71: =Tilgung($B70,$G71,$B71,X$11,$F$7,X70) -> 0 | AC71: =Tilgung($B70,$G71,$B71,AC$11,$F$7,AC70) -> 0 | AH71: =Tilgung($B70,$G71,$B71,AH$11,$F$7,AH70) -> 0
B73: Summe Valuta Geschäftsjahr | N73: =SUM(N17+N21+N25+N29+N33+N37+N41+N45+N49+N53+N57+N61+N65+N69) -> 96191.5 | S73: =SUM(S17+S21+S25+S29+S33+S37+S41+S45+S49+S53+S57+S61+S65+S69) -> 86478.28 | X73: =SUM(X17+X21+X25+X29+X33+X37+X41+X45+X49+X53+X57+X61+X65+X69) -> 76471.47 | AC73: =SUM(AC17+AC21+AC25+AC29+AC33+AC37+AC41+AC45+AC49+AC53+AC57+AC61+AC65+AC69) -> 63944.81 | AH73: =SUM(AH17+AH21+AH25+AH29+AH33+AH37+AH41+AH45+AH49+AH53+AH57+AH61+AH65+AH69) -> 38891.49
B75: Summe tatsächliche Tilgung gem. Buchabschluss | N75: =SUM(N18+N22+N26+N30+N34+N38+N42+N46+N50+N54+N58+N62+N66+N70) -> 6000 | S75: =SUM(S18+S22+S26+S30+S34+S38+S42+S46+S50+S54+S58+S62+S66+S70) -> 12526.66 | X75: =SUM(X18+X22+X26+X30+X34+X38+X42+X46+X50+X54+X58+X62+X66+X70) -> 12526.66
B77: Summe kalkulatorische Tilgung 7) | N77: =SUM(N19+N23+N27+N31+N35+N39+N43+N47+N51+N55+N59+N63+N67+N71) -> 8768.656 | S77: =SUM(S19+S23+S27+S31+S35+S39+S43+S47+S51+S55+S59+S63+S67+S71) -> 8768.656 | X77: =SUM(X19+X23+X27+X31+X35+X39+X43+X47+X51+X55+X59+X63+X67+X71) -> 8768.656 | AC77: =SUM(AC19+AC23+AC27+AC31+AC35+AC39+AC43+AC47+AC51+AC55+AC59+AC63+AC67+AC71) -> 8768.656 | AH77: =SUM(AH19+AH23+AH27+AH31+AH35+AH39+AH43+AH47+AH51+AH55+AH59+AH63+AH67+AH71) -> 8768.656
B79: Tilgungsdauer tatsächlich -Jahre | N79: =N73/N75 -> 16.03191667 | S79: =S73/S75 -> 6.903538533 | X79: =X73/X75 -> 6.104697501
B80: Tilgungsdauer kalkulatorisch - Jahre | N80: =N73/N77 -> 10.96992515 | S80: =S73/S77 -> 9.862204653 | X80: =X73/X77 -> 8.721002398
A82: 1) | B82: Alle vorhandenen sowie für die Maßnahme notwendigen neuen Darlehen des antragstellenden Unternehmens (bei Personengesellschaften auch Darlehen aus dem Sonderbetriebsvermögen) sind zu erfassen.
A84: 2) | B84: Die Darlehen sind in der Reihenfolge und mit der Bezeichnung aus dem Buchabschluss zu erfassen. Kontokorrentkonten sowie Darlehen mit einer Laufzeit von weniger als einem Jahr sind nicht zu berücksichtigen.
A86: 3) | B86: Betriebswirtschaftliche Laufzeit bei Darlehen für Landkauf 25 Jahre, Darlehen für Baumaßnahmen 20 Jahre und für alle weiteren Darlehen 10 Jahre. Sollen Darlehen auf eine betriebswirtschaftliche Laufzeit von mehr als 10 Jahren umgerechnet werden, ist der Darlehensvertrag oder eine Bestätigung der Buchstelle mit vorzulegen.
A88: 4) | B88: Darlehnsbetrag in den Geschäftsjahren zum Bilanzstichtag.
A90: 5) | B90: Bei Familiendarlehen und öffentlichen Darlehen mit einer Laufzeit von mehr als 25 Jahren kann die vereinbarte Tilgung auch als betriebswirtschaftliche Tilgung übernommen werden.
A92: 6) | B92: Tatsächlich getilgte Darlehen können ab dem Ist-Jahr unberücksichtigt bleiben.
A94: 7) | B94: Auf die Seite 2 des Investitionskonzeptes (Zeile 55) zu übertragen.

Sheet Tabelle2

Sheet Tabelle3
